Workbook

Sheet Лист1
A1: Школа | C1: МБОУ СОШ № 2 им.А.Асеева и Ю.Голикова | F1: Утвердил: | G1: должность | H1: директор
A2: Типовое примерное меню приготавливаемых блюд | G2: фамилия | H2: Порецкая О.Н.
A3: Возрастная категория | E3: 7-11 лет | G3: дата | H3: 9 | I3: 1 | J3: 2025
H4: день | I4: месяц | J4: год
A5: Неделя | B5: День недели | C5: Прием пищи | D5: Раздел меню | E5: Блюда | F5: Вес блюда, г | G5: Белки | H5: Жиры | I5: Углеводы | J5: Калорийность | K5: № рецептуры | L5: Цена
A6: 1 | B6: 1 | C6: Завтрак | D6: гор.блюдо | E6: Каша дружба | F6: 200 | G6: 6 | H6: 9.8 | I6: 24.1 | J6: 168.9 | K6: 54-16к | L6: 12.9
E7: Яйцо отварное | F7: 40 | G7: 5.08 | H7: 4.6 | I7: 0.28 | J7: 62.8 | K7: 139 | L7: 12.7
D8: гор.напиток | E8: Чай с сахаром | F8: 200 | G8: 0.12 | H8: 0 | I8: 12.04 | J8: 48.64 | K8: 300 | L8: 1.82
D9: хлеб | E9: Хлеб пшеничный,хлеб ржано-пшеничный | F9: 60 | G9: 3.45 | H9: 0.66 | I9: 25.34 | J9: 122.52 | L9: 4.42
D10: фрукты | E10: Фрукты свежие | F10: 100 | G10: 0.8 | H10: 0.8 | I10: 19.6 | J10: 88 | K10: 386 | L10: 16.15
D13: итого | F13: =SUM(F6:F12) -> 600 | G13: =SUM(G6:G12) -> 15.45 | H13: =SUM(H6:H12) -> 15.86 | I13: =SUM(I6:I12) -> 81.36 | J13: =SUM(J6:J12) -> 490.86 | L13: =SUM(L6:L12) -> 47.99
A14: =A6 -> 1 | B14: =B6 -> 1 | C14: Обед | D14: закуска | E14: Овощи по сезону | F14: 60 | G14: 0.66 | H14: 0.06 | I14: 1.44 | J14: 9.6 | L14: 11.82
D15: 1 блюдо | E15: Суп картофельный с бобовыми | F15: 200 | G15: 1.87 | H15: 3.11 | I15: 10.95 | J15: 79.03 | K15: 45 | L15: 8.62
D16: 2 блюдо | E16: Фрикадельки из кур | F16: 95 | G16: 13.7 | H16: 14.9 | I16: 7.3 | J16: 190.7 | K16: 410 | L16: 38.49
D17: гарнир | E17: Рис отварной | F17: 150 | G17: 3.8 | H17: 5.08 | I17: 40.2 | J17: 225.1 | K17: 224 | L17: 12.28
D18: напиток | E18: Сок яблочный | F18: 200 | G18: 1 | H18: 0.2 | I18: 20.2 | J18: 92 | L18: 21.51
D19: хлеб бел. | E19: Хлеб пшеничный | F19: 30 | G19: 2.4 | H19: 0.3 | I19: 14.6 | J19: 72.6 | L19: 1.8
D20: хлеб черн. | E20: Хлеб ржано-пшеничный | F20: 30 | G20: 1.05 | H20: 0.36 | I20: 10.74 | J20: 49.92 | L20: 2.62
D23: итого | F23: =SUM(F14:F22) -> 765 | G23: =SUM(G14:G22) -> 24.48 | H23: =SUM(H14:H22) -> 24.01 | I23: =SUM(I14:I22) -> 105.43 | J23: =SUM(J14:J22) -> 718.95 | L23: =SUM(L14:L22) -> 97.14
A24: =A6 -> 1 | B24: =B6 -> 1 | C24: Итого за день: | F24: =F13+F23 -> 1365 | G24: =G13+G23 -> 39.93 | H24: =H13+H23 -> 39.87 | I24: =I13+I23 -> 186.79 | J24: =J13+J23 -> 1209.81 | L24: =L13+L23 -> 145.13
A25: 1 | B25: 2 | C25: Завтрак | D25: гор.блюдо | E25: Биточки из птицы,Каша пшеничная | F25: 245 | G25: 23.48 | H25: 21.39 | I25: 46.57 | J25: 471.84 | K25: 209.221 | L25: 50.15
D26: закуска | E26: Овощи по сезону | F26: 60 | G26: 0.72 | H26: 0.09 | I26: 2.97 | J26: 12.6 | L26: 3.06
D27: гор.напиток | E27: Чай с лимоном | F27: 200 | G27: 0.12 | H27: 0 | I27: 12.04 | J27: 48.64 | K27: 294 | L27: 1.8
D28: хлеб | E28: Хлеб пшеничный | F28: 30 | G28: 2.4 | H28: 0.3 | I28: 14.6 | J28: 72.6 | L28: 11.82
D29: фрукты
D32: итого | F32: =SUM(F25:F31) -> 535 | G32: =SUM(G25:G31) -> 26.72 | H32: =SUM(H25:H31) -> 21.78 | I32: =SUM(I25:I31) -> 76.18 | J32: =SUM(J25:J31) -> 605.68 | L32: =SUM(L25:L31) -> 66.83
A33: =A25 -> 1 | B33: =B25 -> 2 | C33: Обед | D33: закуска | E33: Овощи по сезону | F33: 60 | G33: 0.7 | H33: 0.1 | I33: 1.9 | J33: 12 | L33: 11.82
D34: 1 блюдо | E34: Борщ с капустой и картофелем | F34: 200 | G34: 1.52 | H34: 5.33 | I34: 8.65 | J34: 88.89 | K34: 37 | L34: 7.82
D35: 2 блюдо | E35: Бефстроганов из отварной говядины | F35: 120 | G35: 21.72 | H35: 25.11 | I35: 3.85 | J35: 325.69 | K35: 176 | L35: 91.67
D36: гарнир | E36: Макароны отварные | F36: 150 | G36: 5.52 | H36: 5.3 | I36: 35.33 | J36: 211.1 | K36: 227 | L36: 9.4
D37: напиток | E37: Компот из яблок с лимоном | F37: 200 | G37: 0.25 | H37: 0.25 | I37: 25.35 | J37: 104.07 | K37: 284 | L37: 7.7
D38: хлеб бел. | E38: Хлеб пшеничный | F38: 30 | G38: 2.4 | H38: 0.3 | I38: 14.6 | J38: 72.6 | L38: 1.8
D39: хлеб черн. | E39: Хлеб ржано-пшеничный | F39: 30 | G39: 1.05 | H39: 0.36 | I39: 10.74 | J39: 49.92 | L39: 2.62
D42: итого | F42: =SUM(F33:F41) -> 790 | G42: =SUM(G33:G41) -> 33.16 | H42: =SUM(H33:H41) -> 36.75 | I42: =SUM(I33:I41) -> 100.42 | J42: =SUM(J33:J41) -> 864.27 | L42: =SUM(L33:L41) -> 132.83
A43: =A25 -> 1 | B43: =B25 -> 2 | C43: Итого за день: | F43: =F32+F42 -> 1325 | G43: =G32+G42 -> 59.88 | H43: =H32+H42 -> 58.53 | I43: =I32+I42 -> 176.6 | J43: =J32+J42 -> 1469.95 | L43: =L32+L42 -> 199.66
A44: 1 | B44: 3 | C44: Завтрак | D44: гор.блюдо | E44: Запеканка из творога с джемом | F44: 150 | G44: 25.8 | H44: 10.7 | I44: 25.7 | J44: 257.4 | K44: 141 | L44: 69.13
D46: гор.напиток | E46: Кофейный напиток | F46: 200 | G46: 1.4 | H46: 4.6 | I46: 17.35 | J46: 89.32 | K46: 287 | L46: 5.15
D47: хлеб
D48: фрукты | E48: Фрукты свежие | F48: 180 | G48: 3 | H48: 1 | I48: 42 | J48: 192 | K48: 386 | L48: 29.08
D51: итого | F51: =SUM(F44:F50) -> 530 | G51: =SUM(G44:G50) -> 30.2 | H51: =SUM(H44:H50) -> 16.3 | I51: =SUM(I44:I50) -> 85.05 | J51: =SUM(J44:J50) -> 538.72 | L51: =SUM(L44:L50) -> 103.36
A52: =A44 -> 1 | B52: =B44 -> 3 | C52: Обед | D52: закуска | E52: Овощи по сезону | F52: 60 | G52: 0.72 | H52: 2.82 | I52: 4.62 | J52: 47 | L52: 11.82
D53: 1 блюдо | E53: Суп картофельный с мясными фрикадельками | F53: 235 | G53: 9.76 | H53: 6.82 | I53: 19.01 | J53: 175.1 | K53: 48 | L53: 44.49
D54: 2 блюдо | E54: Рыба запеченная | F54: 95 | G54: 17.5 | H54: 15.05 | I54: 4.5 | J54: 224.14 | K54: 164 | L54: 59.85
D55: гарнир | E55: Картофель отварной | F55: 150 | G55: 2.9 | H55: 7.4 | I55: 19.05 | J55: 153 | K55: 426 | L55: 11.48
D56: напиток | E56: Напиток из шиповника | F56: 200 | G56: 0.68 | H56: 0 | I56: 28.01 | J56: 46.87 | K56: 289 | L56: 7.97
D57: хлеб бел. | E57: Хлеб пшеничный | F57: 30 | G57: 2.4 | H57: 0.3 | I57: 14.6 | J57: 72.6 | L57: 1.8
D58: хлеб черн. | E58: Хлеб ржано-пшеничный | F58: 30 | G58: 1.05 | H58: 0.36 | I58: 10.74 | J58: 49.92 | L58: 2.62
D61: итого | F61: =SUM(F52:F60) -> 800 | G61: =SUM(G52:G60) -> 35.01 | H61: =SUM(H52:H60) -> 32.75 | I61: =SUM(I52:I60) -> 100.53 | J61: =SUM(J52:J60) -> 768.63 | L61: =SUM(L52:L60) -> 140.03
A62: =A44 -> 1 | B62: =B44 -> 3 | C62: Итого за день: | F62: =F51+F61 -> 1330 | G62: =G51+G61 -> 65.21 | H62: =H51+H61 -> 49.05 | I62: =I51+I61 -> 185.58 | J62: =J51+J61 -> 1307.35 | L62: =L51+L61 -> 243.39
A63: 1 | B63: 4 | C63: Завтрак | D63: гор.блюдо | E63: Тефтели из говядины с рисом,каша пшенная | F63: 250 | G63: 15.1 | H63: 17.97 | I63: 42.32 | J63: 538.16 | K63: 202,265,222 | L63: 45.55
D64: закуска | E64: Овощи по сезону | F64: 60 | G64: 0.48 | H64: 0.06 | I64: 1.38 | J64: 7.8 | L64: 1.82
D65: гор.напиток | E65: Чай с сахаром | F65: 200 | G65: 0.12 | H65: 0 | I65: 12.04 | J65: 48.64 | K65: 300 | L65: 4.42
D66: хлеб | E66: Хлеб пшеничный,хлеб ржано-пшеничный | F66: 60 | G66: 3.45 | H66: 0.66 | I66: 25.34 | J66: 122.52
D67: фрукты | L67: 11.82
D70: итого | F70: =SUM(F63:F69) -> 570 | G70: =SUM(G63:G69) -> 19.15 | H70: =SUM(H63:H69) -> 18.69 | I70: =SUM(I63:I69) -> 81.08 | J70: =SUM(J63:J69) -> 717.12 | L70: =SUM(L63:L69) -> 63.61
A71: =A63 -> 1 | B71: =B63 -> 4 | C71: Обед | D71: закуска | E71: Овощи по сезону | F71: 60 | G71: 0.48 | H71: 0.06 | I71: 1.38 | J71: 7.8 | L71: 11.82
D72: 1 блюдо | E72: Рассольник Ленинградский | F72: 200 | G72: 3.02 | H72: 9.04 | I72: 25.9 | J72: 119.68 | K72: 42 | L72: 13.47
D73: 2 блюдо | E73: Курица тушенная с морковью | F73: 100 | G73: 9.08 | H73: 8.7 | I73: 4.4 | J73: 126.4 | K73: 54 -25м-2020 | L73: 31.48
D74: гарнир | E74: Каша пшеничная | F74: 150 | G74: 9.27 | H74: 5.33 | I74: 36.87 | J74: 231.78 | K74: 221 | L74: 7.3
D75: напиток | E75: Сок яблочный | F75: 200 | G75: 1 | H75: 0.2 | I75: 20.2 | J75: 92 | L75: 21.51
D76: хлеб бел. | E76: Хлеб пшеничный | F76: 30 | G76: 2.4 | H76: 0.3 | I76: 14.6 | J76: 72.6 | L76: 1.8
D77: хлеб черн. | E77: Хлеб ржано-пшеничный | F77: 30 | G77: 1.05 | H77: 0.36 | I77: 10.74 | J77: 49.92 | L77: 2.62
D80: итого | F80: =SUM(F71:F79) -> 770 | G80: =SUM(G71:G79) -> 26.3 | H80: =SUM(H71:H79) -> 23.99 | I80: =SUM(I71:I79) -> 114.09 | J80: =SUM(J71:J79) -> 700.18 | L80: =SUM(L71:L79) -> 90
A81: =A63 -> 1 | B81: =B63 -> 4 | C81: Итого за день: | F81: =F70+F80 -> 1340 | G81: =G70+G80 -> 45.45 | H81: =H70+H80 -> 42.68 | I81: =I70+I80 -> 195.17 | J81: =J70+J80 -> 1417.3 | L81: =L70+L80 -> 153.61
A82: 1 | B82: 5 | C82: Завтрак | D82: гор.блюдо | E82: Каша рисовая молочная | F82: 205 | G82: 5.17 | H82: 4.2 | I82: 32.66 | J82: 171.13 | K82: 114 | L82: 14.45
E83: Сыр твердый,масло сливочное | F83: 35 | G83: 5.9 | H83: 14.57 | I83: 0.1 | J83: 157 | K83: 366.365 | L83: 28.16
D84: гор.напиток | E84: Чай с лимоном | F84: 200 | G84: 0.07 | H84: 0.01 | I84: 15.31 | J84: 61.62 | K84: 294 | L84: 3.04
D85: хлеб | E85: Хлеб пшеничный | F85: 30 | G85: 2.4 | H85: 0.3 | I85: 14.6 | J85: 72.6 | L85: 1.8
D86: фрукты | E86: Фрукты свежие | F86: 100 | G86: 3 | H86: 0 | I86: 19.6 | J86: 88 | K86: 386 | L86: 16.15
D89: итого | F89: =SUM(F82:F88) -> 570 | G89: =SUM(G82:G88) -> 16.54 | H89: =SUM(H82:H88) -> 19.08 | I89: =SUM(I82:I88) -> 82.27 | J89: =SUM(J82:J88) -> 550.35 | L89: =SUM(L82:L88) -> 63.6
A90: =A82 -> 1 | B90: =B82 -> 5 | C90: Обед | D90: закуска | E90: Овощи по сезону | F90: 60 | G90: 0.72 | H90: 2.82 | I90: 4.62 | J90: 47 | L90: 11.82
D91: 1 блюдо | E91: Суп с макаронными изделиями | F91: 200 | G91: 2.26 | H91: 2.29 | I91: 17.41 | J91: 99.27 | K91: 47 | L91: 8.03
D92: 2 блюдо | E92: Котлета говяжья | F92: 95 | G92: 13.78 | H92: 15.12 | I92: 7.4 | J92: 228 | K92: 189 | L92: 59.64
D93: гарнир | E93: Каша гречневая рассыпчатая | F93: 150 | G93: 5.82 | H93: 3.62 | I93: 15 | J93: 175.87 | K93: 219 | L93: 8.98
D94: напиток | E94: Компот из яблок | F94: 200 | G94: 0.16 | H94: 0 | I94: 44.99 | J94: 125.64 | K94: 282 | L94: 4.27
D95: хлеб бел. | E95: Хлеб пшеничный | F95: 30 | G95: 2.4 | H95: 0.3 | I95: 14.6 | J95: 72.6 | L95: 1.8
D96: хлеб черн. | E96: Хлеб ржано-пшеничный | F96: 30 | G96: 1.05 | H96: 0.36 | I96: 10.74 | J96: 49.92 | L96: 2.62
D99: итого | F99: =SUM(F90:F98) -> 765 | G99: =SUM(G90:G98) -> 26.19 | H99: =SUM(H90:H98) -> 24.51 | I99: =SUM(I90:I98) -> 114.76 | J99: =SUM(J90:J98) -> 798.3 | L99: =SUM(L90:L98) -> 97.16
A100: =A82 -> 1 | B100: =B82 -> 5 | C100: Итого за день: | F100: =F89+F99 -> 1335 | G100: =G89+G99 -> 42.73 | H100: =H89+H99 -> 43.59 | I100: =I89+I99 -> 197.03 | J100: =J89+J99 -> 1348.65 | L100: =L89+L99 -> 160.76
A101: 2 | B101: 1 | C101: Завтрак | D101: гор.блюдо | E101: Каша молочная овсянная из Геркулес | F101: 155 | G101: 6.84 | H101: 10.3 | I101: 19.36 | J101: 190.1 | K101: 109 | L101: 11.16
E102: Сыр адыгейский | F102: 40 | G102: 5.6 | H102: 7.8 | I102: 0 | J102: 96 | K102: 366 | L102: 28.81
D103: гор.напиток | E103: Чай с сахаром | F103: 200 | G103: 0.12 | H103: 0 | I103: 12.04 | J103: 48.64 | K103: 300 | L103: 1.82
D104: хлеб | E104: Хлеб пшеничный | F104: 30 | G104: 2.4 | H104: 0.3 | I104: 14.6 | J104: 72.6 | L104: 1.8
D105: фрукты | E105: Фрукты свежие | F105: 100 | G105: 0.8 | H105: 0.8 | I105: 19.6 | J105: 88 | L105: 16.15
D108: итого | F108: =SUM(F101:F107) -> 525 | G108: =SUM(G101:G107) -> 15.76 | H108: =SUM(H101:H107) -> 19.2 | I108: =SUM(I101:I107) -> 65.6 | J108: =SUM(J101:J107) -> 495.34 | L108: =SUM(L101:L107) -> 59.74
A109: =A101 -> 2 | B109: =B101 -> 1 | C109: Обед | D109: закуска | E109: Овощи по сезону | F109: 60 | G109: 0.72 | H109: 2.82 | I109: 4.62 | J109: 47 | L109: 11.82
D110: 1 блюдо | E110: Суп картофельный с крупой | F110: 200 | G110: 1.59 | H110: 2.19 | I110: 11.66 | J110: 72.6 | K110: 86 | L110: 5.04
D111: 2 блюдо | E111: Рагу из птицы | F111: 205 | G111: 18.61 | H111: 19.34 | I111: 59.12 | J111: 493.73 | K111: 214 | L111: 37.05
D112: гарнир
D113: напиток | E113: Компот из яблок | F113: 200 | G113: 0.16 | H113: 0 | I113: 14.99 | J113: 60.64 | K113: 282 | L113: 4.27
D114: хлеб бел. | E114: Хлеб пшеничный | F114: 30 | G114: 2.4 | H114: 0.3 | I114: 14.6 | J114: 72.6 | L114: 1.8
D115: хлеб черн. | E115: Хлеб ржано-пшеничный | F115: 30 | G115: 1.05 | H115: 0.36 | I115: 10.74 | J115: 49.92 | L115: 2.62
D118: итого | F118: =SUM(F109:F117) -> 725 | G118: =SUM(G109:G117) -> 24.53 | H118: =SUM(H109:H117) -> 25.01 | I118: =SUM(I109:I117) -> 115.73 | J118: =SUM(J109:J117) -> 796.49 | L118: =SUM(L109:L117) -> 62.6
A119: =A101 -> 2 | B119: =B101 -> 1 | C119: Итого за день: | F119: =F108+F118 -> 1250 | G119: =G108+G118 -> 40.29 | H119: =H108+H118 -> 44.21 | I119: =I108+I118 -> 181.33 | J119: =J108+J118 -> 1291.83 | L119: =L108+L118 -> 122.34
A120: 2 | B120: 2 | C120: Завтрак | D120: гор.блюдо | E120: Фрикадельки из говядины,каша гречневая | F120: =150+90 -> 240 | G120: 14.22 | H120: 14.72 | I120: 36.1 | J120: 348.77 | K120: 54-29м-2020,219 | L120: 65.67
D121: закуска | E121: Овощи по сезону | F121: 60 | G121: 0.83 | H121: 3.2 | I121: 5.3 | J121: 54.5 | L121: 3.06
D122: гор.напиток | E122: Чай с лимоном | F122: 200 | G122: 0.07 | H122: 0.01 | I122: 15.31 | J122: 61.62 | K122: 294 | L122: 11.82
D123: хлеб | E123: Хлеб пшеничный,хлеб ржано-пшеничный | F123: 60 | G123: 3.45 | H123: 0.66 | I123: 25.34 | J123: 122.52 | L123: 4.42
D124: фрукты
D127: итого | F127: =SUM(F120:F126) -> 560 | G127: =SUM(G120:G126) -> 18.57 | H127: =SUM(H120:H126) -> 18.59 | I127: =SUM(I120:I126) -> 82.05 | J127: =SUM(J120:J126) -> 587.41 | L127: =SUM(L120:L126) -> 84.97
A128: =A120 -> 2 | B128: =B120 -> 2 | C128: Обед | D128: закуска | E128: Овощи по сезону | F128: 60 | G128: 0.48 | H128: 0.06 | I128: 1.98 | J128: 8.4 | L128: 11.82
D129: 1 блюдо | E129: Суп картофельный с бобовыми | F129: 200 | G129: 1.87 | H129: 3.11 | I129: 10.95 | J129: 79.03 | K129: 45 | L129: 8.62
D130: 2 блюдо | E130: Котлета куриная | F130: 95 | G130: 14.21 | H130: 16.06 | I130: 9.7 | J130: 240.06 | K130: 209 | L130: 42.85
D131: гарнир | E131: Капуста тушенная | F131: 150 | G131: 5.6 | H131: 5.4 | I131: 5.9 | J131: 94.5 | K131: 423 | L131: 19.16
D132: напиток | E132: Компот из сухофруктов | F132: 200 | G132: 0.56 | H132: 0 | I132: 47.89 | J132: 163.79 | K132: 283 | L132: 16.43
D133: хлеб бел. | E133: Хлеб пшеничный | F133: 30 | G133: 2.4 | H133: 0.3 | I133: 14.6 | J133: 72.6 | L133: 1.8
D134: хлеб черн. | E134: Хлеб ржано-пшеничный | F134: 30 | G134: 1.05 | H134: 0.36 | I134: 10.74 | J134: 49.92 | L134: 2.62
D137: итого | F137: =SUM(F128:F136) -> 765 | G137: =SUM(G128:G136) -> 26.17 | H137: =SUM(H128:H136) -> 25.29 | I137: =SUM(I128:I136) -> 101.76 | J137: =SUM(J128:J136) -> 708.3 | L137: =SUM(L128:L136) -> 103.3
A138: =A120 -> 2 | B138: =B120 -> 2 | C138: Итого за день: | F138: =F127+F137 -> 1325 | G138: =G127+G137 -> 44.74 | H138: =H127+H137 -> 43.88 | I138: =I127+I137 -> 183.81 | J138: =J127+J137 -> 1295.71 | L138: =L127+L137 -> 188.27
A139: 2 | B139: 3 | C139: Завтрак | D139: гор.блюдо | E139: Сырники из творога с медом | F139: 150 | G139: 12.12 | H139: 5.24 | I139: 44.67 | J139: 334.32 | K139: 154 | L139: 54.98
L140: 13.55
D141: гор.напиток | E141: Какао | F141: 200 | G141: 4.6 | H141: 3.6 | I141: 12.6 | J141: 61.4 | K141: 5412
D142: хлеб
D143: фрукты | E143: Фрукты свежие | F143: 180 | G143: 3 | H143: 1 | I143: 23 | J143: 192 | K143: 386 | L143: 29.08
D146: итого | F146: =SUM(F139:F145) -> 530 | G146: =SUM(G139:G145) -> 19.72 | H146: =SUM(H139:H145) -> 9.84 | I146: =SUM(I139:I145) -> 80.27 | J146: =SUM(J139:J145) -> 587.72 | L146: =SUM(L139:L145) -> 97.61
A147: =A139 -> 2 | B147: =B139 -> 3 | C147: Обед | D147: закуска | E147: Овощи по сезону | F147: 60 | G147: 0.48 | H147: 0.06 | I147: 1.98 | J147: 8.4 | L147: 11.82
D148: 1 блюдо | E148: Суп картофельный с мясными фрикадельками | F148: 235 | G148: 9.76 | H148: 6.82 | I148: 19.01 | J148: 175.1 | K148: 48 | L148: 44.49
D149: 2 блюдо | E149: Тефтели из говядины с рисом | F149: 100 | G149: 9.16 | H149: 13.53 | I149: 9.44 | J149: 196.14 | K149: 202 | L149: 38.24
D150: гарнир | E150: Каша пшеничная | F150: 150 | G150: 2.27 | H150: 5.33 | I150: 36.87 | J150: 131.78 | K150: 221 | L150: 7.3
D151: напиток | E151: Напиток из груши дички | F151: 200 | G151: 0 | H151: 0 | I151: 24 | J151: 96 | L151: 7.97
D152: хлеб бел. | E152: Хлеб пшеничный | F152: 30 | G152: 2.4 | H152: 0.3 | I152: 14.6 | J152: 72.6 | L152: 1.8
D153: хлеб черн. | E153: Хлеб ржано-пшеничный | F153: 30 | G153: 1.05 | H153: 0.36 | I153: 10.74 | J153: 49.92 | L153: 2.62
D156: итого | F156: =SUM(F147:F155) -> 805 | G156: =SUM(G147:G155) -> 25.12 | H156: =SUM(H147:H155) -> 26.4 | I156: =SUM(I147:I155) -> 116.64 | J156: =SUM(J147:J155) -> 729.94 | L156: =SUM(L147:L155) -> 114.24
A157: =A139 -> 2 | B157: =B139 -> 3 | C157: Итого за день: | F157: =F146+F156 -> 1335 | G157: =G146+G156 -> 44.84 | H157: =H146+H156 -> 36.24 | I157: =I146+I156 -> 196.91 | J157: =J146+J156 -> 1317.66 | L157: =L146+L156 -> 211.85
A158: 2 | B158: 4 | C158: Завтрак | D158: гор.блюдо | E158: Птица тушенная в соусе,макароны отварные | F158: 280 | G158: 14.63 | H158: 16.2 | I158: 40.93 | J158: 394.1 | K158: 318.227 | L158: 61.97
D159: закуска | E159: Овощи по сезону | F159: 60 | G159: 2.1 | H159: 3 | I159: 5.55 | J159: 58.88 | L159: 3.04
D160: гор.напиток | E160: Чай с лимоном | F160: 200 | G160: 0.07 | H160: 0.01 | I160: 15.31 | J160: 61.62 | K160: 294 | L160: 11.82
D161: хлеб | E161: Хлеб пшеничный | F161: 30 | G161: 2.4 | H161: 0.3 | I161: 14.6 | J161: 72.6 | L161: 1.8
D162: фрукты
D165: итого | F165: =SUM(F158:F164) -> 570 | G165: =SUM(G158:G164) -> 19.2 | H165: =SUM(H158:H164) -> 19.51 | I165: =SUM(I158:I164) -> 76.39 | J165: =SUM(J158:J164) -> 587.2 | L165: =SUM(L158:L164) -> 78.63
A166: =A158 -> 2 | B166: =B158 -> 4 | C166: Обед | D166: закуска | E166: Овощи по сезону | F166: 60 | G166: 1.1 | H166: 0.1 | I166: 3.4 | J166: 16.03 | L166: 11.82
D167: 1 блюдо | E167: Борщ с капустой и картофелем | F167: 200 | G167: 1.52 | H167: 5.33 | I167: 8.65 | J167: 88.89 | K167: 37 | L167: 7.82
D168: 2 блюдо | E168: Жаркое по домашнему | F168: 220 | G168: 19.54 | H168: 18.63 | I168: 25.13 | J168: 334.58 | K168: 181 | L168: 94.7
D169: гарнир
D170: напиток | E170: Компот из яблок с лимоном | F170: 200 | G170: 0.33 | H170: 0 | I170: 40.66 | J170: 141.98 | K170: 284 | L170: 7.7
D171: хлеб бел. | E171: Хлеб пшеничный | F171: 30 | G171: 2.4 | H171: 0.3 | I171: 14.6 | J171: 72.6 | L171: 1.8
D172: хлеб черн. | E172: Хлеб ржано-пшеничный | F172: 30 | G172: 1.05 | H172: 0.36 | I172: 10.74 | J172: 49.92 | L172: 2.62
D175: итого | F175: =SUM(F166:F174) -> 740 | G175: =SUM(G166:G174) -> 25.94 | H175: =SUM(H166:H174) -> 24.72 | I175: =SUM(I166:I174) -> 103.18 | J175: =SUM(J166:J174) -> 704 | L175: =SUM(L166:L174) -> 126.46
A176: =A158 -> 2 | B176: =B158 -> 4 | C176: Итого за день: | F176: =F165+F175 -> 1310 | G176: =G165+G175 -> 45.14 | H176: =H165+H175 -> 44.23 | I176: =I165+I175 -> 179.57 | J176: =J165+J175 -> 1291.2 | L176: =L165+L175 -> 205.09
A177: 2 | B177: 5 | C177: Завтрак | D177: гор.блюдо | E177: Рыба запеченная,картофельное пюре | F177: 245 | G177: 15.7 | H177: 19.11 | I177: 27.8 | J177: 364.6 | K177: 164.241 | L177: 70.4
D179: гор.напиток | E179: Чай с сахаром | F179: 200 | G179: 0.12 | H179: 0 | I179: 12.04 | J179: 48.64 | K179: 300 | L179: 1.82
D180: хлеб | E180: Хлеб пшеничный | F180: 30 | G180: 2.4 | H180: 0.3 | I180: 14.6 | J180: 72.6 | L180: 1.8
D181: фрукты | E181: Фрукты свежие | F181: 100 | G181: 1.5 | H181: 0.5 | I181: 21 | J181: 96 | K181: 386 | L181: 16.15
D184: итого | F184: =SUM(F177:F183) -> 575 | G184: =SUM(G177:G183) -> 19.72 | H184: =SUM(H177:H183) -> 19.91 | I184: =SUM(I177:I183) -> 75.44 | J184: =SUM(J177:J183) -> 581.84 | L184: =SUM(L177:L183) -> 90.17
A185: =A177 -> 2 | B185: =B177 -> 5 | C185: Обед | D185: закуска | E185: Овощи по сезону | F185: 60 | G185: 0.48 | H185: 0.06 | I185: 1.98 | J185: 8.4 | L185: 11.82
D186: 1 блюдо | E186: Суп с клецками | F186: 230 | G186: 3 | H186: 8.63 | I186: 13.47 | J186: 89.55 | K186: 46 | L186: 7.89
D187: 2 блюдо | E187: Плов из отварной птицы | F187: 210 | G187: 17.26 | H187: 13.73 | I187: 35.7 | J187: 401 | K187: 321 | L187: 62.42
D188: гарнир
D189: напиток | E189: Напиток из шиповника | F189: 200 | G189: 0.68 | H189: 0 | I189: 21.01 | J189: 101.87 | K189: 289 | L189: 7.97
D190: хлеб бел. | E190: Хлеб пшеничный | F190: 30 | G190: 2.4 | H190: 0.3 | I190: 14.6 | J190: 72.6 | L190: 1.8
D191: хлеб черн. | E191: Хлеб ржано-пшеничный | F191: 30 | G191: 1.05 | H191: 0.36 | I191: 10.74 | J191: 49.92 | L191: 2.62
D194: итого | F194: =SUM(F185:F193) -> 760 | G194: =SUM(G185:G193) -> 24.87 | H194: =SUM(H185:H193) -> 23.08 | I194: =SUM(I185:I193) -> 97.5 | J194: =SUM(J185:J193) -> 723.34 | L194: =SUM(L185:L193) -> 94.52
A195: =A177 -> 2 | B195: =B177 -> 5 | C195: Итого за день: | F195: =F184+F194 -> 1335 | G195: =G184+G194 -> 44.59 | H195: =H184+H194 -> 42.99 | I195: =I184+I194 -> 172.94 | J195: =J184+J194 -> 1305.18 | L195: =L184+L194 -> 184.69
C196: Среднее значение за период: | F196: =(F24+F43+F62+F81+F100+F119+F138+F157+F176+F195)/(IF(F24=0, 0, 1)+IF(F43=0, 0, 1)+IF(F62=0, 0, 1)+IF(F81=0, 0, 1)+IF(F100=0, 0, 1)+IF(F119=0, 0, 1)+IF(F138=0, 0, 1)+IF(F157=0, 0, 1)+IF(F176=0, 0, 1)+IF(F195=0, 0, 1)) -> 1325 | G196: =(G24+G43+G62+G81+G100+G119+G138+G157+G176+G195)/(IF(G24=0, 0, 1)+IF(G43=0, 0, 1)+IF(G62=0, 0, 1)+IF(G81=0, 0, 1)+IF(G100=0, 0, 1)+IF(G119=0, 0, 1)+IF(G138=0, 0, 1)+IF(G157=0, 0, 1)+IF(G176=0, 0, 1)+IF(G195=0, 0, 1)) -> 47.28 | H196: =(H24+H43+H62+H81+H100+H119+H138+H157+H176+H195)/(IF(H24=0, 0, 1)+IF(H43=0, 0, 1)+IF(H62=0, 0, 1)+IF(H81=0, 0, 1)+IF(H100=0, 0, 1)+IF(H119=0, 0, 1)+IF(H138=0, 0, 1)+IF(H157=0, 0, 1)+IF(H176=0, 0, 1)+IF(H195=0, 0, 1)) -> 44.527 | I196: =(I24+I43+I62+I81+I100+I119+I138+I157+I176+I195)/(IF(I24=0, 0, 1)+IF(I43=0, 0, 1)+IF(I62=0, 0, 1)+IF(I81=0, 0, 1)+IF(I100=0, 0, 1)+IF(I119=0, 0, 1)+IF(I138=0, 0, 1)+IF(I157=0, 0, 1)+IF(I176=0, 0, 1)+IF(I195=0, 0, 1)) -> 185.573 | J196: =(J24+J43+J62+J81+J100+J119+J138+J157+J176+J195)/(IF(J24=0, 0, 1)+IF(J43=0, 0, 1)+IF(J62=0, 0, 1)+IF(J81=0, 0, 1)+IF(J100=0, 0, 1)+IF(J119=0, 0, 1)+IF(J138=0, 0, 1)+IF(J157=0, 0, 1)+IF(J176=0, 0, 1)+IF(J195=0, 0, 1)) -> 1325.464 | L196: =(L24+L43+L62+L81+L100+L119+L138+L157+L176+L195)/(IF(L24=0, 0, 1)+IF(L43=0, 0, 1)+IF(L62=0, 0, 1)+IF(L81=0, 0, 1)+IF(L100=0, 0, 1)+IF(L119=0, 0, 1)+IF(L138=0, 0, 1)+IF(L157=0, 0, 1)+IF(L176=0, 0, 1)+IF(L195=0, 0, 1)) -> 181.479
